Workbook

Sheet Orientation
A1: Demonstration TEM - Riboflavin fermentation
B4: Introduction
B5: Purpose | D5: This model illustrates one approach to techno-economic modeling that we often use at Burk Engineering LLC. The purpose of this model is to demonstrate this approach and its value, not to accurately represent a realistic process.
B8: About the process | D8: Riboflavin (Vitamin B2) is used as an additive to human and animal food products. The worldwide production was about 8,000 metric tons per year as of 2015 and is obtained mostly through fermentation using A. gossypii strains. This model is based on a case study from the textbook 'Development of Sustainable Bioprocesses', by Heinzle, Biwer, and Cooney, using the alternative organism Eremothecium ashbyii.
D10: E. ashbyii is closely related to A. gosypii, but it is not very genetically stable, so it is necessary to use a batch configuration starting with fresh stock for each batch.
B13: The model
B14: Operation | D14: The model is modular in structure, as described in more detail below. The Dashboard page aggregates important user input values and results for easy access and operation. The Tornado page uses a VBA macro to quickly build tornado diagrams for sensitivity analysis.
D17: Grey shaded cells contain workbook-level input values.
D20: Yellow shaded cells contain worksheet-level input values, which are linked to workbook-level input cells on the Dashboard page.
B24: Structure | D24: The diagram below shows the general structure of the model. The blocks are worksheet pages and the lines represent flow of information.
D26: The Process model uses technical parameters from the lab, literature, and elsewhere to develop a material balance for the process, which is defined in the process diagram. The Equipment sizing page uses data from the material balance to calculate utility requirements, labor requirements, and the specific values necessary for estimating major equipment costs. The OpEx & Rev page estimates operating costs and revenue using values from the material balance and prices specified by the user.
D28: To estimate capital costs, the model first estimates major equipment costs and then extrapolates total plant cost. The Equipment costs page uses capacity scaling factors to estimate major equipment costs from reference cases. The CapEx page applies multiplying factors to major equipment costs to estimate total capital cost.
D30: The Cash flow page performs a discounted cash flow analysis for the plant over a fifteen-year period and calculates profitability metrics like NPV and IRR.
B33: VBA components | D33: Tornado analysis - Tornado charts are time consuming to generate manually, since they require plugging in and recording numerous values. This workbook contains a macro that does this automatically. It can be used and reconfigured on the 'Tornado' page, but the code is locked and cannot be exported. Third party tornado analysis software is available from several sources.
D35: Lookup functions- This workbook also contains two custom VBA functions for looking up values in the stream table and equipment list. These functions allow for simpler and more intuitive formulas, which reduces errors and facilitates spreadsheet development and debugging. The code for these functions is also locked, but is published and discussed in more detail in the blog post linked below.
D36: Pro Tip: Searchable Excel Stream Tables with VBA
B39: Contact
B40: Chris Burk, PE | D40: Process techno-economics consultant
D41: Burk Engineering LLC
C42: email | D42: cburk@BurkEngineeringLLC.com
C43: website | D43: www.BurkEngineeringLLC.com

Sheet Dashboard
A1: Techno-economic model dashboard- Riboflavin fermentation
B2: This page aggregates important user input values and results for easy access.
B5: Process parameters | I5: Profitability metrics
B6: Plant capacity | E6: 1000 | F6: t/yr | I6: NPV | K6: =NPV -> 52.39637699 | L6: MM USD
B7: Batches per year | E7: 12 | F7: /yr | I7: IRR | K7: =IRR -> 0.1738735901
B8: Inoculum ratio | E8: 0.1 | F8: mass | I8: Disc. payback | K8: =DiscountedPayback -> 9.319245442 | L8: yr
B9: Max fermenter size | E9: 500 | F9: m3 | I9: Gross margin | K9: =K22/K18 -> 0.575259251
B10: Fermentation time | E10: 500 | F10: h | I10: CapEx / Capacity | K10: =10^6*K17/E6 -> 143231.6052 | L10: USD/(t/yr)
B11: Sunflower oil conversion | E11: 0.99
B12: Fermentation aeration rate | E12: 0.2 | F12: vvm
B13: Crystallization yield | E13: 0.9 | F13: of riboflavin
B16: Product & raw material values | I16: Financial results
B17: Riboflavin product | E17: 60 | F17: /kg | I17: Total capital | K17: =TotalCapitalInvestment/10^6 -> 143.2316052 | L17: MM USD
B18: Methionine | E18: 35 | F18: /kg | I18: Revenue | K18: =Revenue/10^6 -> 60 | L18: MM USD/ yr
B19: Glucose | E19: 1 | F19: /kg | K19: =K18/PlantCapacity_kg_per_year*10^6 -> 60 | L19: / kg product
B20: Malt Extract | E20: 4 | F20: /kg | I20: Operating costs | K20: =OpEx/10^6 -> 25.48444494 | L20: MM USD/ yr
B21: Peptone | E21: 9 | F21: /kg | K21: =K20/PlantCapacity_kg_per_year*10^6 -> 25.48444494 | L21: / kg product
B22: Sunflower oil | E22: 0.55 | F22: /kg | I22: Gross profit | K22: =K18-K20 -> 34.51555506 | L22: MM USD/ yr
B23: Yeast extract | E23: 4 | F23: /kg | K23: =K22/PlantCapacity_kg_per_year*10^6 -> 34.51555506 | L23: / kg product
B26: Other OpEx parameters | I26: Process metrics
B27: Operator rate | E27: 85 | F27: /hr | I27: Mass index | K27: ='Process model'!O21 -> 38.43495081 | L27: kg in / kg prod.
B28: Electrical power | E28: 0.11 | F28: /kWh | I28: Ferm. O2 utilization | K28: ='Process model'!O22 -> 0.001804987666
B29: Maintenance factor | E29: 0.1 | F29: xDFC/yr

Sheet Tornado
A1: Tornado diagram sensitivity analysis
B2: This page uses a VBA macro to automate building tornado diagrams based on the model. Tornado diagrams are useful for prioritizing R&D and for identify risks and opportunities.
H4: Settings | I4: Worst | J4: Expected | K4: Best | L4: Units | M4: Reference
H5: Plant capacity | I5: 900 | J5: 1000 | K5: 1200 | L5: t/yr | M5: =Dashboard!$E$6 -> 1000
H6: Batches per year | I6: 11 | J6: 12 | K6: 13 | L6: 1/yr | M6: =Dashboard!$E$7 -> 12
H7: Max fermenter size | I7: 400 | J7: 500 | K7: 800 | L7: m3 | M7: =Dashboard!$E$9 -> 500
H8: Fermentation time | I8: 550 | J8: 500 | K8: 450 | L8: h | M8: =Dashboard!$E$10 -> 500
H9: Fermentation air rate | I9: 0.3 | J9: 0.2 | K9: 0.1 | L9: vvm | M9: =Dashboard!$E$12 -> 0.2
H10: Crystallization yield | I10: 0.87 | J10: 0.9 | K10: 0.93 | L10: of riboflavin | M10: =Dashboard!$E$13 -> 0.9
H11: Product price | I11: 58 | J11: 60 | K11: 63 | L11: /kg | M11: =Dashboard!$E$17 -> 60
H12: Methionine price | I12: 38.5 | J12: 35 | K12: 33 | L12: /kg | M12: =Dashboard!$E$18 -> 35
H13: Power price | I13: 0.13 | J13: 0.11 | K13: 0.1 | L13: /kWh | M13: =Dashboard!$E$28 -> 0.11
H14: Maintenance factor | I14: 0.12 | J14: 0.1 | K14: 0.08 | L14: x DFC/yr | M14: =Dashboard!$E$29 -> 0.1
I18: Metric: | J18: IRR
H21: User instructions:
H22: 1. In 'Settings' table, enter best-case, expected-case, and worst-case values for each parameter.
H23: 2. Select output metric from drop down menu below table.
H24: 3. Click 'Refresh Tornado' button.
H25: 4. Customize chart format if desired.
A30: Software Copyright 2017 Burk Engineering LLC
G49: Tornado data & settings
H51: Results | I51: Reference | J51: Higher = better
H52: NPV, MMUSD | I52: =Dashboard!K6 -> 52.39637699 | J52: 1
H53: IRR | I53: =Dashboard!K7 -> 0.1738735901 | J53: 1
H54: Disc. Payback, yr | I54: =Dashboard!K8 -> 9.319245442 | J54: 0
H55: Gross margin | I55: =Dashboard!K9 -> 0.575259251 | J55: 1
H56: CapEx/Capacity, USD/(t/yr) | I56: =Dashboard!K10 -> 143231.6052 | J56: 0
H59: Use: Index | I59: =MATCH(J18,$H$52:$H$57,0) -> 2
H60: Value | I60: =INDEX($I$52:$I$57,I59) -> 0.1738735901
H61: Format | I61: =CELL("format",INDEX($I$52:$I$57,I59)) -> P0
H63: Metric | I63: Higher = better | J63: Reference
H64: =J18 -> IRR | I64: =INDEX(J52:J57,MATCH(T_Metric,H52:H57,0)) -> 1 | J64: =Tornado!I60 -> 0.1738735901
H65: Input | I65: Low | J65: High
H66: Methionine price | I66: 0.173304922 | J66: 0.1741982725
H67: Maintenance factor | I67: 0.1695507441 | J67: 0.1781575426
H68: Fermentation time | I68: 0.1692378324 | J68: 0.1785089014
H69: Power price | I69: 0.169188763 | J69: 0.1762006816
H70: Plant capacity | I70: 0.1685408159 | J70: 0.176724121
H71: Max fermenter size | I71: 0.1671268219 | J71: 0.1855048067
H72: Product price | I72: 0.1626255122 | J72: 0.1902659379
H73: Crystallization yield | I73: 0.1610144631 | J73: 0.1844815756
H74: Fermentation air rate | I74: 0.1582778835 | J74: 0.1914279037
H75: Batches per year | I75: 0.1539006896 | J75: 0.1912050406

Sheet Process model
A1: Process model
B2: This page populates a material balance for the process based on user input and the process flow diagram.
B5: General user input | G5: Raw materials | I5: t/batch | J5: t/yr | L5: Product | N5: Mass comp. | O5: t/batch | P5: t/yr
B6: Plant capacity | D6: =Dashboard!E6 -> 1000 | E6: t/yr | G6: Water | I6: =StreamTable(100,G6)/1000 -> 2977.791528 | J6: =I6*Batches_per_year -> 35733.49833 | L6: Riboflavin (cr) | N6: =O6/SUM($O$6:$O$11) -> 0.8609966115 | O6: =StreamTable(700,L6)/1000 -> 83.33333333 | P6: =O6*Batches_per_year -> 1000
B7: Batches per year | D7: =Dashboard!E7 -> 12 | E7: 1/yr | G7: Sunflower oil | I7: 89.33374583 | J7: 1072.00495 | L7: Biomass | N7: 0.09484594652 | O7: 9.179860606 | P7: 110.1583273
B8: Inoculum ratio | D8: =Dashboard!E8 -> 0.1 | E8: mass | G8: Glucose | I8: 29.77791528 | J8: 357.3349833 | L8: Water | N8: 0.04355874404 | O8: 4.215922907 | P8: 50.59107488
G9: Peptone | I9: 29.77791528 | J9: 357.3349833 | L9: Glucose | N9: 0.0005543499276 | O9: 0.0536539014 | P9: 0.6438468168
G10: Yeast extract | I10: 29.77791528 | J10: 357.3349833 | L10: Magnesium sulfate | N10: 2.21739971e-05 | O10: 0.002146156056 | P10: 0.02575387267
B11: Fermentation parameters | G11: Malt extract | I11: 29.77791528 | J11: 357.3349833 | L11: Potassium phosphate | N11: 2.21739971e-05 | O11: 0.002146156056 | P11: 0.02575387267
B12: SFO conversion | D12: =Dashboard!E11 -> 0.99 | G12: Methionine | I12: 2.382233222 | J12: 28.58679867 | L12: Total | N12: =SUM(N6:N11) -> 1 | O12: =SUM(O6:O11) -> 96.78706306 | P12: =SUM(P6:P11) -> 1161.444757
B13: Aeration rate | D13: =Dashboard!E12 -> 0.2 | E13: vvm | G13: Magnesium sulfate | I13: 1.191116611 | J13: 14.29339933
G14: Potassium phosphate | I14: 1.191116611 | J14: 14.29339933
G15: Sulfuric acid | I15: 11.91116611 | J15: 142.9339933
G16: Air | I16: =(StreamTable(205,"Oxygen")+StreamTable(205,"Nitrogen")+StreamTable(605,"Oxygen")+StreamTable(605,"Nitrogen"))/1000 -> 28188.81967 | J16: 338265.836
B20: Crystallizer parameters | G20: Liquid waste | I20: t/batch | J20: t/yr | L20: Metrics
B21: SFO evaporated | D21: 0.2 | G21: Decanter oil fract. | I21: =StreamTable(550, "Mass per batch")/1000 -> 42.77734508 | J21: =I21*Batches_per_year -> 513.328141 | L21: Mass index, inlet | O21: =SUM(J6:J15)/P6 -> 38.43495081
B22: Water evaporated | D22: 0.3 | G22: Decanter aq. fract. | I22: =StreamTable(555, "Mass per batch")/1000 -> 1704.118866 | J22: =I22*Batches_per_year -> 20449.42639 | L22: Oxygen utilization in fermenter | O22: =-O107/StreamTable(205,"Oxygen") -> 0.001804987666
B23: Crystallization yield | D23: =Dashboard!E13 -> 0.9 | E23: of riboflavin
B26: Spray dryer parameters | G26: Exhaust | I26: t/batch | J26: t/yr | L26: Assumptions & notes
B27: Water evaporation | D27: 0.99 | G27: Fermenter | I27: =StreamTable(250, "Mass per batch")/1000 -> 26140.21774 | J27: =I27*Batches_per_year -> 313682.6129 | L27: Crystallization heat is negligible.
B28: Air ratio | D28: 5 | E28: x evap. H2O | G28: Crystallizer | I28: =StreamTable(450, "Mass per batch")/1000 -> 903.5730131 | J28: =I28*Batches_per_year -> 10842.87616 | L28: Agitation energy goes to heat.
G29: Spray dryer | I29: =StreamTable(650, "Mass per batch")/1000 -> 2504.258206 | J29: =I29*Batches_per_year -> 30051.09848 | L29: No loss of product in spray dryer, crystallizer, tank transfer.
A40: Material balance
B43: Stream | E43: 5 | F43: 10 | G43: 100 | H43: 105 | I43: 200 | J43: 205 | K43: 250 | L43: 300 | M43: 350 | N43: 400 | O43: 450 | P43: 500 | Q43: 550 | R43: 555 | S43: 600 | T43: 605 | U43: 650 | V43: 700
B45: Process step | D45: - | E45: Feed preparation | G45: Inoculation | I45: Fermentation | L45: Inoculation removal | N45: Crystallization | P45: Decanting | S45: Spray drying | V45: Product
B46: In / Out | D46: - | E46: in | F46: in | H46: in | J46: in | K46: out | M46: out | O46: out | Q46: out | R46: out | T46: in | U46: out | V46: out
B47: Phase | D47: - | E47: L | F47: L | G47: L | H47: L | I47: L | J47: G | K47: G | L47: L | M47: L | N47: L | O47: G | P47: L, S | Q47: L | R47: L | S47: L, S | T47: G | U47: G | V47: S
B49: Temperature | D49: degC | E49: 2 | F49: 2 | H49: 2 | I49: 1 | J49: 40 | K49: 20
B50: Pressure | D50: bar | E50: 35 | F50: 35 | H50: 30 | I50: 30 | J50: 6 | K50: 1
B51: Density | D51: kg/m3 | E51: 1330 | F51: 1005 | G51: 1000 | H51: 1000 | I51: 1000 | J51: =D105 -> 1.223878451 | K51: =J51 -> 1.223878451 | L51: 1000 | M51: 1000 | N51: 1000 | O51: 1000 | P51: 1000 | Q51: 1000 | R51: 1000 | S51: 1000 | T51: 1000 | U51: 1000 | V51: 1000
B53: Volume | D53: m3 | E53: =E56/E51 -> 31.9848714 | F53: 3144.649441 | G53: 3202.912567 | H53: 351.6258505 | I53: 3554.538418 | J53: 21327230.51 | K53: 21358508.05 | L53: 3516.258505 | M53: 351.6258505 | N53: 3164.632655 | O53: 903.5730131 | P53: 2261.059642 | Q53: 42.77734508 | R53: 1704.118866 | S53: 514.1634308 | T53: 2086.881839 | U53: 2504.258206 | V53: 96.78706306
B56: Mass per batch | D56: kg | E56: =E60/I104 -> 42539.87897 | F56: =SUM(F57:F75) -> 3160372.688 | G56: =SUM(G57:G75) -> 3202912.567 | H56: =SUM(H57:H75) -> 351625.8505 | I56: =SUM(I57:I75) -> 3554538.418 | J56: =D110 -> 26101937.83 | K56: =SUM(K57:K75) -> 26140217.74 | L56: =SUM(L57:L75) -> 3516258.505 | M56: =L56-N56 -> 351625.8505 | N56: =SUM(N57:N75) -> 3164632.655 | O56: 903573.0131 | P56: 2261059.642 | Q56: 42777.34508 | R56: 1704118.866 | S56: 514163.4308 | T56: =D116 -> 2086881.839 | U56: =SUM(U57:U75) -> 2504258.206 | V56: =SUM(V57:V75) -> 96787.06306
B57: Water | D57: H2O | E57: =E56-E60 -> 12761.96369 | F57: =G57-E57 -> 2965029.564 | G57: =G59/I92*1000 -> 2977791.528 | H57: =M57 -> 334597.0561 | I57: =G57+H57 -> 3312388.584 | L57: =N57/(1-Inoculum_ratio) -> 3345970.561 | M57: =L57-N57 -> 334597.0561 | N57: =G57+O110 -> 3011373.505 | O57: =N57*D22 -> 903412.0514 | P57: =N57-O57 -> 2107961.453 | R57: =P57-Q57-S57 -> 1686369.163 | S57: =X112 -> 421592.2907 | U57: =D114 -> 417376.3677 | V57: =S57-U57 -> 4215.922907
B59: Sunflower oil | D59: - | F59: =G59 -> 89333.74583 | G59: =I59-H59 -> 89333.74583 | H59: =M59 -> 89.423169 | I59: =D97 -> 89423.169 | L59: =I59+O92 -> 894.23169 | M59: =L59*Inoculum_ratio -> 89.423169 | N59: =G59+O92 -> 804.808521 | O59: =N59*D21 -> 160.9617042 | P59: =N59-O59 -> 643.8468168 | Q59: =W94 -> 128.7693634 | R59: =P59-Q59-S59 -> 515.0774535
B60: Glucose | D60: C6H12O6 | E60: =G60 -> 29777.91528 | G60: =$G$59*J93 -> 29777.91528 | H60: 29.807723 | I60: =G60+H60 -> 29807.723 | L60: =N60/(1-Inoculum_ratio) -> 298.07723 | M60: =L60-N60 -> 29.807723 | N60: 268.269507 | P60: =N60 -> 268.269507 | R60: =P60-Q60-S60 -> 214.6156056 | S60: =X95 -> 53.6539014 | V60: =S60 -> 53.6539014
B61: Peptone | D61: - | F61: =G61 -> 29777.91528 | G61: 29777.91528 | H61: 29.807723 | I61: 29807.723 | L61: 298.07723 | M61: 29.807723 | N61: 268.269507 | P61: 268.269507 | Q61: =W96 -> 134.1347535 | R61: =P61-Q61-S61 -> 134.1347535
B62: Yeast extract | D62: - | F62: 29777.91528 | G62: 29777.91528 | H62: 29.807723 | I62: 29807.723 | L62: 298.07723 | M62: 29.807723 | N62: 268.269507 | P62: 268.269507 | Q62: =W97 -> 134.1347535 | R62: =P62-Q62-S62 -> 134.1347535
B63: Malt extract | D63: - | F63: 29777.91528 | G63: 29777.91528 | H63: 29.807723 | I63: 29807.723 | L63: 298.07723 | M63: 29.807723 | N63: 268.269507 | P63: 268.269507 | Q63: =W98 -> 134.1347535 | R63: 134.1347535
B64: Methionine | D64: C5H11NO2S | F64: 2382.233222 | G64: 2382.233222 | H64: 2.38461784 | I64: 2384.61784 | L64: 23.8461784 | M64: 2.38461784 | N64: 21.46156056 | P64: 21.46156056 | Q64: =W99 -> 8.584624224 | R64: 12.87693634
B65: Magnesium sulfate | D65: MgSO4-7H2O | F65: 1191.116611 | G65: 1191.116611 | H65: 1.19230892 | I65: 1192.30892 | L65: 11.9230892 | M65: 1.19230892 | N65: 10.73078028 | P65: 10.73078028 | R65: 8.584624224 | S65: =X100 -> 2.146156056 | V65: =S65 -> 2.146156056
B66: Potassium phosphate | D66: K2HPO4 | F66: 1191.116611 | G66: 1191.116611 | H66: 1.19230892 | I66: 1192.30892 | L66: 11.9230892 | M66: 1.19230892 | N66: 10.73078028 | P66: 10.73078028 | R66: 8.584624224 | S66: =X101 -> 2.146156056 | V66: =S66 -> 2.146156056
B67: Sulfuric acid | D67: H2SO4 (1N*) | F67: 11911.16611 | G67: 11911.16611 | H67: 1323.462901 | I67: 13234.62901 | L67: 13234.62901 | M67: 1323.462901 | N67: 11911.16611 | P67: 11911.16611 | R67: 11911.16611 | V67: =S67 -> 0
B69: Biomass | D69: - | H69: =M69 -> 5099.922559 | I69: =G69+H69 -> 5099.922559 | L69: =N69/(1-Inoculum_ratio) -> 50999.22559 | M69: =L69-N69 -> 5099.922559 | N69: =G69+O102 -> 45899.30303 | P69: =N69 -> 45899.30303 | Q69: =W104 -> 36719.44243 | S69: =X104 -> 9179.860606 | V69: =S69 -> 9179.860606
B70: Riboflavin, aq. | D70: C17H20N4O6 | H70: =M70 -> 10391.9857 | I70: =L70-O103 -> 10391.9857 | L70: =N70/(1-Inoculum_ratio) -> 103919.857 | M70: =L70-N70 -> 10391.9857 | N70: =P71/D23 -> 93527.87131 | P70: =N70-P71 -> 9352.787131 | Q70: =W105 -> 4676.393565 | R70: =P70-Q70-S70 -> 4676.393565
B71: Riboflavin (cr) | D71: C17H20N4O6 | P71: =S71/U106 -> 84175.08418 | Q71: =W106 -> 841.7508418 | S71: =V71 -> 83333.33333 | V71: =D95 -> 83333.33333
B73: Nitrogen | D73: N2 | J73: =J56-J74 -> 20046288.25 | K73: =J73 -> 20046288.25 | T73: =T56-T74 -> 1602725.252 | U73: =T73 -> 1602725.252
B74: Oxygen | D74: O2 | J74: =J56*$I$105 -> 6055649.577 | K74: =J74+O107 -> 6044719.204 | T74: =T56*$I$105 -> 484156.5866 | U74: =T74 -> 484156.5866
B75: Carbon dioxide | D75: CO2 | K75: =J75+O108 -> 49210.28529
B77: Balance check | D77: Overall: | E77: =SUM(E56,F56,H56,J56,T56)-SUM(K56,M56,O56,Q56,R56,U56,V56)<tolerance -> TRUE | G77: =G56-F56-E56<tolerance -> TRUE | I77: =I56-H56-G56<tolerance -> TRUE | L77: =I56+L56-K56-J56<tolerance -> TRUE | N77: =N56-M56-L56<tolerance -> TRUE | P77: =P56-O56-N56<tolerance -> TRUE | S77: =P56-S56-R56-Q56<tolerance -> TRUE | V77: =S56+V56-U56-T56<tolerance -> TRUE
A88: Calculations & secondary user input
B91: General calculations | G91: Medium composition | I91: g/L water | J91: g/g SFO | L91: Reaction rate | N91: Mass coef. | O91: Conv., kg | Q91: Centrifuge material balance
B92: Batch rate | D92: =D7/s_per_yr -> 3.805175038e-07 | E92: 1/s | G92: Sunflower oil | I92: 30 | J92: =I92/$I$92 -> 1 | L92: Sun Flower Oil | N92: -15 | O92: =$O$103/$N$103*N92 -> -88528.93731 | Q92: Component | S92: Feed rate | T92: Mass distribution by phase | W92: Mass per batch, kg | Z92: Balance
B93: Plant capacity (RBF) | D93: =D6*kg_per_t/s_per_yr -> 0.03170979198 | E93: kg/s | G93: Glucose | I93: 10 | J93: 0.3333333333 | L93: Glucose | N93: -5 | O93: -29509.64577 | Q93: - | S93: kg | T93: oil | U93: solid | V93: aq. | W93: oil | X93: solid | Y93: aq. | Z93: check
D94: =Capacity*s_per_yr -> 1000000 | E94: kg/yr | G94: Peptone | I94: 10 | J94: 0.3333333333 | L94: Peptone | N94: -5 | O94: -29509.64577 | Q94: Sun Flower Oil | S94: =P59 -> 643.8468168 | T94: 0.2 | V94: 0.8 | W94: =$S94*T94 -> 128.7693634 | X94: =$S94*U94 -> 0 | Y94: =$S94*V94 -> 515.0774535 | Z94: =S94-W94-X94-Y94<0.0001 -> TRUE
D95: =Capacity/Batch_rate -> 83333.33333 | E95: kg/batch | G95: Yeast extract | I95: 10 | J95: 0.3333333333 | L95: Yeast Extract | N95: -5 | O95: -29509.64577 | Q95: Glucose | S95: 268.269507 | U95: 0.2 | V95: 0.8 | W95: 0 | X95: 53.6539014 | Y95: 214.6156056 | Z95: TRUE
B96: Sunflower oil conversion | D96: =D12 -> 0.99 | G96: Malt extract | I96: 10 | J96: 0.3333333333 | L96: Malt Extract | N96: -5 | O96: -29509.64577 | Q96: Peptone | S96: 268.269507 | T96: 0.5 | V96: 0.5 | W96: 134.1347535 | X96: 0 | Y96: 134.1347535 | Z96: TRUE
B97: Sunflower oil feed rate | D97: =-O92/D96 -> 89423.169 | E97: kg/s | G97: Methionine | I97: 0.8 | J97: 0.02666666667 | L97: D/L-Methionine | N97: -0.4 | O97: -2360.771662 | Q97: Yeast Extract | S97: 268.269507 | T97: 0.5 | V97: 0.5 | W97: 134.1347535 | X97: 0 | Y97: 134.1347535 | Z97: TRUE
G98: Magnesium sulfate | I98: 0.4 | J98: 0.01333333333 | L98: Magne Sulfate | N98: -0.2 | O98: -1180.385831 | Q98: Malt Extract | S98: 268.269507 | T98: 0.5 | V98: 0.5 | W98: 134.1347535 | X98: 0 | Y98: 134.1347535 | Z98: TRUE
G99: Potassium phosphate | I99: 0.4 | J99: 0.01333333333 | L99: K2HPO4 | N99: -0.2 | O99: -1180.385831 | Q99: D/L-Methionine | S99: 21.46156056 | T99: 0.4 | V99: 0.6 | W99: 8.584624224 | X99: 0 | Y99: 12.87693634 | Z99: TRUE
B100: Fermenter calculations | G100: Sulfuric acid | I100: 4 | J100: 0.1333333333 | L100: Sulfuric acid | N100: 0 | O100: 0 | Q100: Magne Sulfate | S100: 10.73078028 | U100: 0.2 | V100: 0.8 | W100: 0 | X100: 2.146156056 | Y100: 8.584624224 | Z100: TRUE
B101: Working volume | D101: =I53 -> 3554.538418 | E101: m3 | Q101: K2HPO4 | S101: 10.73078028 | U101: 0.2 | V101: 0.8 | W101: 0 | X101: 2.146156056 | Y101: 8.584624224 | Z101: TRUE
B102: Fermentation time | D102: =Fermentation_Time -> 500 | E102: h | L102: Biomass | N102: 7.777 | O102: =$O$103/$N$103*N102 -> 45899.30303 | Q102: Sulfuric Acid | S102: 11911.16611 | V102: 1 | W102: 0 | X102: 0 | Y102: 11911.16611 | Z102: TRUE
D103: =D102*s_per_h -> 1800000 | E103: s | G103: Other compositions | L103: Riboflavin, aq. | N103: 15.847 | O103: =Gross_product_rate -> 93527.87131
B104: MW air | D104: =MW_O2*I105+MW_N2*(1-I105) -> 28.938288 | E104: kg/kmol | G104: Glucose in syrup | I104: 0.7 | J104: mass | L104: Riboflavin, s. | N104: 0 | O104: =$O$103/$N$103*N104 -> 0 | Q104: Biomass | S104: =P69 -> 45899.30303 | T104: 0.8 | U104: 0.2 | W104: =$S104*T104 -> 36719.44243 | X104: 9179.860606 | Y104: 0 | Z104: =S104-W104-X104-Y104<0.0001 -> TRUE
B105: Air density | D105: =MW_air/scm_per_kmol -> 1.223878451 | E105: kg/scm | G105: Oxygen in air | I105: 0.232 | J105: mass | Q105: Riboflavin | S105: =P70 -> 9352.787131 | T105: 0.5 | V105: 0.5 | W105: 4676.393565 | X105: 0 | Y105: 4676.393565 | Z105: =S105-W105-X105-Y105<0.0001 -> TRUE
B106: Air rate | D106: =D13 -> 0.2 | E106: vvm | L106: Nitrogen | N106: 0 | O106: =$O$103/$N$103*N106 -> 0 | Q106: Riboflavin (cr) | S106: =P71 -> 84175.08418 | T106: 0.01 | U106: 0.99 | W106: 841.7508418 | X106: 83333.33333 | Y106: 0 | Z106: =S106-W106-X106-Y106<0.0001 -> TRUE
D107: =D106*D101 -> 710.9076836 | E107: scm/min | L107: Oxygen | N107: -1.852 | O107: =$O$103/$N$103*N107 -> -10930.37279
D108: =D107/s_per_min/scm_per_kmol -> 0.5011034714 | E108: kmol/s | L108: Carb. Dioxide | N108: 8.338 | O108: =$O$103/$N$103*N108 -> 49210.28529 | Q108: Nitrogen | S108: =P73 -> 0 | Z108: =S108-W108-X108-Y108<0.0001 -> TRUE
D109: =D108*D104 -> 14.50107657 | E109: kg/s | Q109: Oxygen | S109: =P74 -> 0 | Z109: =S109-W109-X109-Y109<0.0001 -> TRUE
D110: =D103*D109 -> 26101937.83 | E110: kg/batch | L110: Water | N110: 5.69 | O110: =$O$103/$N$103*N110 -> 33581.97689 | Q110: Carb. Dioxide | S110: =P75 -> 0 | Z110: =S110-W110-X110-Y110<0.0001 -> TRUE
B112: Spray dryer calculations | Q112: Water | S112: =P57 -> 2107961.453 | U112: 0.2 | V112: 0.8 | W112: =$S112*T112 -> 0 | X112: =$S112*U112 -> 421592.2907 | Y112: =$S112*V112 -> 1686369.163 | Z112: =S112-W112-X112-Y112<0.0001 -> TRUE
B113: Water evaporation | D113: =D27 -> 0.99 | Z113: =S113-W113-X113-Y113<0.0001 -> TRUE
D114: =D113*S57 -> 417376.3677 | E114: kg
B115: Air mass per batch | D115: =D28 -> 5 | E115: x water evaporated
D116: =D115*D114 -> 2086881.839 | E116: kg

Sheet Equipment sizing
A1: Equipment sizing
B2: This page uses information from the process model to estimate equipment capacities, utility requirements, and labor requirements.
B5: Equipment list | E5: Fermenters | F5: Vessels | L5: Separation equipment | O5: Fluid transport equipment | T5: Misc. equipment
B6: Tag | D6: - | E6: =E74 -> R-200 | F6: =L74 -> T-005 | G6: T-010 | H6: T-350 | I6: T-300 | J6: T-400 | K6: T-500 | L6: =E128 -> CR-300 | M6: =L128 -> DC-400 | N6: =R128 -> SD-500 | O6: =E201 -> K-200 | P6: =L201 -> P-005 | Q6: =M201 -> P-010 | R6: =N201 -> P-300 | S6: =O201 -> P-350 | T6: =E255 -> H-005 | U6: =F255 -> H-101 | V6: =L255 -> F-200 | W6: =M255 -> F-205 | X6: Total
B7: Capacity metric | D7: - | E7: Volume | F7: Volume | G7: Volume | H7: Volume | I7: Volume | J7: Volume | K7: Volume | L7: Volume | M7: Throughput | N7: Volume | O7: Power | P7: Power | Q7: Power | R7: Power | S7: Power | T7: Throughput | U7: Throughput | V7: Throughput | W7: Throughput | X7: -
B8: Capacity units | D8: - | E8: m3 | F8: m3 | G8: m3 | H8: m3 | I8: m3 | J8: m3 | K8: m3 | L8: m3 | M8: m3/h | N8: m3 | O8: kW | P8: kW | Q8: kW | R8: kW | S8: kW | T8: m3/h | U8: m3/h | V8: m3/h | W8: m3/h | X8: -
B9: Capacity per unit | D9: - | E9: =E80 -> 493.6858914 | F9: =L80 -> 39.98108926 | G9: 982.7029503 | H9: 439.5323132 | I9: 3955.790818 | J9: 2826.324552 | K9: 642.7042885 | L9: =E136 -> 29.30215421 | M9: =L136 -> 18.84216368 | N9: =R136 -> 34.78136398 | O9: =E212 -> 1980.205038 | P9: =L212 -> 0.4230803096 | Q9: 12.47876762 | R9: 13.95340677 | S9: 3.875946324 | T9: =E266 -> 10.6616238 | U9: =F266 -> 26.20541201 | V9: =L266 -> 7109.076836 | W9: =M266 -> 14239.00537 | X9: -
B10: Number of units | D10: - | E10: =E81 -> 12 | F10: 1 | G10: 4 | H10: 1 | I10: 1 | J10: 1 | K10: 1 | L10: =E137 -> 2 | M10: =L137 -> 1 | N10: =R137 -> 1 | O10: =E213 -> 2 | P10: 1 | Q10: 1 | R10: 1 | S10: 12 | T10: =E267 -> 1 | U10: =F267 -> 12 | V10: =L267 -> 1 | W10: =M267 -> 3 | X10: -
B12: Electrical power | D12: kW-h | E12: =E82 -> 1421815.367 | F12: =L82/1000 -> 0.2238940998 | L12: =E138 -> 632.926531 | M12: =L138 -> 7976.515958 | N12: =R138 -> 10283.26862 | O12: =E214 -> 1980205.038 | P12: =L214 -> 1.269240929 | Q12: =M214 -> 124.7876762 | R12: =N214 -> 13.95340677 | S12: =O214 -> 139.5340677 | X12: =SUM(E12:W12) -> 3421192.884
B13: Steam | D13: MT | E13: =E83/1000 -> 14.4 | F13: =L83/1000 -> 0.6847427887 | L13: =E139/1000 -> 1344.51183 | N13: =R139/1000 -> 501.9861336 | T13: =E269/1000 -> 1.282273495 | U13: =F269/1000 -> 179.2382796 | X13: =SUM(E13:W13) -> 2042.103259
B14: Cooling water | D14: MT | O14: =E216/1000 -> 232494.0215 | T14: =E270/1000 -> 193.2613162 | U14: =F270/1000 -> 12006.39194 | X14: =SUM(E14:W14) -> 244693.6748
B15: Chilled water | D15: MT | E15: =E85/1000 -> 248460.5347 | L15: =E141/1000 -> 33915.89463 | X15: =SUM(E15:W15) -> 282376.4293
B16: Process water | D16: m3 | L16: =E191 -> 64.97092431 | X16: =SUM(E16:W16) -> 64.97092431
B18: Operating labor | D18: h | E18: =E65 -> 101 | F18: =F65 -> 0 | G18: 0 | H18: 0 | I18: 0 | J18: 0 | K18: 0 | L18: 301 | M18: 60 | N18: 60 | O18: 25 | P18: 0.15 | Q18: 5.5 | R18: 0.55 | S18: 1.65 | T18: 0 | U18: 0 | V18: 5 | W18: 5 | X18: =SUM(E18:W18) -> 564.85
B55: Timing, labor, usage | E55: Fermenters | F55: Vessels | L55: Separation equipment | O55: Fluid transport equipment | T55: Misc. equipment
B56: Tag | D56: - | E56: =E6 -> R-200 | F56: T-005 | G56: T-010 | H56: T-350 | I56: T-300 | J56: T-400 | K56: T-500 | L56: CR-300 | M56: DC-400 | N56: SD-500 | O56: K-200 | P56: P-005 | Q56: P-010 | R56: P-300 | S56: P-350 | T56: H-005 | U56: H-101 | V56: F-200 | W56: F-205
B57: Process time | D57: h | E57: =Dashboard!E10 -> 500 | F57: 7 | G57: 7 | H57: 9 | L57: 120 | M57: 120 | N57: 120 | O57: 500 | P57: 3 | Q57: 10 | R57: 1 | S57: 3 | T57: 3 | U57: 10 | V57: 500 | W57: 500
B58: Process labor | D58: labor-h/h | E58: 0.2 | L58: 2.5 | M58: 0.5 | N58: 0.5 | O58: 0.05 | P58: 0.05 | Q58: =0.5+0.05 -> 0.55 | R58: 0.55 | S58: =0.5+0.05 -> 0.55 | V58: 0.01 | W58: 0.01
D59: labor-h | E59: =E58*E57 -> 100 | F59: =F58*F57 -> 0 | G59: 0 | H59: 0 | I59: 0 | J59: 0 | K59: 0 | L59: 300 | M59: 60 | N59: 60 | O59: 25 | P59: 0.15 | Q59: 5.5 | R59: 0.55 | S59: 1.65 | T59: 0 | U59: 0 | V59: 5 | W59: 5
B61: CIP time | D61: h | E61: 2 | L61: 2
B62: CIP labor | D62: labor-h/h | E62: 0.5 | L62: 0.5
D63: labor-h | E63: =E62*E61 -> 1 | F63: =F62*F61 -> 0 | G63: =G62*G61 -> 0 | H63: =H62*H61 -> 0 | I63: =I62*I61 -> 0 | J63: =J62*J61 -> 0 | K63: =K62*K61 -> 0 | L63: =L62*L61 -> 1 | M63: =M62*M61 -> 0 | N63: =N62*N61 -> 0 | O63: =O62*O61 -> 0 | P63: =P62*P61 -> 0 | Q63: =Q62*Q61 -> 0 | R63: =R62*R61 -> 0 | S63: =S62*S61 -> 0 | T63: =T62*T61 -> 0 | U63: =U62*U61 -> 0 | V63: =V62*V61 -> 0 | W63: =W62*W61 -> 0
B65: Total labor per batch | D65: h | E65: =E63+E59 -> 101 | F65: =F63+F59 -> 0 | G65: 0 | H65: 0 | I65: 0 | J65: 0 | K65: 0 | L65: 301 | M65: 60 | N65: 60 | O65: 25 | P65: 0.15 | Q65: 5.5 | R65: 0.55 | S65: 1.65 | T65: 0 | U65: 0 | V65: 5 | W65: 5
A71: Fermenter & vessel sizing
B74: Fermenters | E74: R-200 | I74: Vessels & tanks | L74: T-005 | M74: T-010 | N74: T-350 | O74: T-300 | P74: T-400 | Q74: T-500
B75: Stream | D75: - | E75: 200 | I75: Stream | K75: - | L75: 5 | M75: 10 | N75: 105 | O75: 400 | P75: 500 | Q75: 600
B76: Max working volume | D76: - | E76: 0.6 | I76: Max working volume | K76: - | L76: 0.8 | M76: 0.8 | N76: 0.8 | O76: 0.8 | P76: 0.8 | Q76: 0.8
B77: Max vessel volume | D77: m3 | E77: =Dashboard!E9 -> 500 | I77: Max vessel volume | K77: m3 | L77: 80 | M77: 1000 | N77: 500 | O77: 10000 | P77: 10000 | Q77: 10000
B79: Results summary | I79: Results summary
B80: Unit capacity | D80: m3 | E80: =E91 -> 493.6858914 | I80: Unit capacity | K80: m3 | L80: =L91 -> 39.98108926 | M80: 982.7029503 | N80: 439.5323132 | O80: 3955.790818 | P80: 2826.324552 | Q80: 642.7042885
B81: Units in parallel | D81: - | E81: =E90 -> 12 | I81: Units in parallel | K81: - | L81: =L90 -> 1 | M81: 4 | N81: 1 | O81: 1 | P81: 1 | Q81: 1
B82: Electrical power | D82: kW-h | E82: =E99 -> 1421815.367 | I82: Electrical power | K82: kW-h | L82: =L99 -> 223.8940998 | M82: =M99 -> - | N82: - | O82: - | P82: - | Q82: -
B83: Steam | D83: kg | E83: =E114 -> 14400 | I83: Steam | K83: kg | L83: =L108 -> 684.7427887 | M83: =M108 -> - | N83: - | O83: - | P83: - | Q83: -
B84: Cooling water | D84: kg | E84: - | I84: Cooling water | K84: kg | L84: - | M84: - | N84: - | O84: - | P84: - | Q84: -
B85: Chilled water | D85: kg | E85: =E108 -> 248460534.7 | I85: Chilled water | K85: kg | L85: - | M85: - | N85: - | O85: - | P85: - | Q85: -
B87: Capacity calculation | I87: Volume calculation
B88: Batch volume | D88: m3 | E88: =StreamTable(E75,"Volume") -> 3554.538418 | I88: Batch volume | K88: m3 | L88: =StreamTable(L75,"Volume") -> 31.9848714 | M88: 3144.649441 | N88: 351.6258505 | O88: 3164.632655 | P88: 2261.059642 | Q88: 514.1634308
B89: Total vessel volume | D89: m3 | E89: =E88/E76 -> 5924.230696 | I89: Vessel volume | K89: m3 | L89: =L88/L76 -> 39.98108926 | M89: 3930.811801 | N89: 439.5323132 | O89: 3955.790818 | P89: 2826.324552 | Q89: 642.7042885
B90: Units in parallel | D90: - | E90: =ROUNDUP(E89/E77,0) -> 12 | I90: Units in parallel | K90: - | L90: =ROUNDUP(L89/L77,0) -> 1 | M90: 4 | N90: 1 | O90: 1 | P90: 1 | Q90: 1
B91: Vessel volume | D91: m3 | E91: =E89/E90 -> 493.6858914 | I91: Vessel volume | K91: m3 | L91: =L89/L90 -> 39.98108926 | M91: 982.7029503 | N91: 439.5323132 | O91: 3955.790818 | P91: 2826.324552 | Q91: 642.7042885
B93: Agitation power calculation | I93: Agitation power calculation
B94: Process time | D94: h | E94: =E57 -> 500 | I94: Process time | K94: h | L94: =F57 -> 7 | M94: 7 | N94: 9 | O94: 0 | P94: 0 | Q94: 0
D95: s | E95: =E94*s_per_h -> 1800000 | K95: s | L95: =L94*s_per_h -> 25200 | M95: 25200 | N95: 32400 | O95: 0 | P95: 0 | Q95: 0
B96: Specific power | D96: kW/m3 | E96: 0.8 | I96: Specific power | K96: kW/m3 | L96: 1 | M96: - | N96: - | O96: - | P96: - | Q96: -
B97: Power | D97: kW | E97: =E96*E88 -> 2843.630734 | I97: Power | K97: kW | L97: =L96*L88 -> 31.9848714 | M97: - | N97: - | O97: - | P97: - | Q97: -
D98: kJ | E98: =E97*E95 -> 5118535322 | K98: kJ | L98: =L97*L95 -> 806018.7594 | M98: - | N98: - | O98: - | P98: - | Q98: -
D99: kW-h | E99: =E97*E94 -> 1421815.367 | K99: kW-h | L99: =L97*L94 -> 223.8940998 | M99: - | N99: - | O99: - | P99: - | Q99: -
B101: Chilled water calculations | I101: Steam calculations
B102: Total mass | D102: kg | E102: =StreamTable(E75,"Mass per batch") -> 3554538.418 | I102: Total mass | K102: kg | L102: =StreamTable(L75,"Mass per batch") -> 42539.87897 | M102: - | N102: - | O102: - | P102: - | Q102: -
B103: Process temp. initial | D103: degC | E103: 35 | I103: Process temp. initial | K103: degC | L103: 25 | M103: - | N103: - | O103: - | P103: - | Q103: -
B104: Process temp. final | D104: degC | E104: 30 | I104: Process temp. final | K104: degC | L104: 50 | M104: - | N104: - | O104: - | P104: - | Q104: -
B105: Duty for temp. change | D105: kJ | E105: =(E104-E103)*Cp_H2O*E102 -> -74289852.93 | I105: Duty for temp. change | K105: kJ | L105: =(L104-L103)*Cp_GlucoseSyrup*L102 -> 2243978.616 | M105: - | N105: - | O105: - | P105: - | Q105: -
B106: Total duty | D106: kJ | E106: =E105-E98 -> -5192825175 | I106: Total duty | K106: kJ | L106: =L105-L98 -> 1437959.856 | M106: - | N106: - | O106: - | P106: - | Q106: -
B108: Chilled water | D108: kg | E108: =E106/Cp_H2O/(T_ChilledWater_Supply-T_ChilledWater_Return) -> 248460534.7 | I108: Steam | K108: kg | L108: =L106/Hvap_H2O -> 684.7427887 | M108: - | N108: - | O108: - | P108: - | Q108: -
D109: kg/h | E109: =E108/E94 -> 496921.0693 | K109: kg/h | L109: =L108/L94 -> 97.82039838 | M109: - | N109: - | O109: - | P109: - | Q109: -
B111: Steam in place calculations
B112: Time | D112: h | E112: =E61 -> 2
B113: Rate | D113: kg/h | E113: 7200
B114: Steam per batch | D114: kg | E114: =E113*E112 -> 14400
A125: Separation equipment sizing
B128: Crystallizers | E128: CR-300 | I128: Decanting centrifuges | L128: DC-400 | O128: Spray dryers | R128: SD-500
B129: Stream | E129: 400 | I129: Stream | K129: - | L129: 500 | O129: Process time | Q129: h | R129: =N57 -> 120
B130: Process time | D130: h | E130: =L57 -> 120 | I130: Process time | K130: h | L130: =M57 -> 120 | O130: Temperature out | Q130: degC | R130: 70
B131: Residence time | D131: h | E131: 2 | I131: Specific power | K131: kJ/m3 | L131: 12700 | O131: Max volume | Q131: m3 | R131: 10000
B132: Max working volume | D132: - | E132: 0.9 | I132: Max throughput | K132: m3/h | L132: 9000
B133: Max volume | D133: m3 | E133: 40
B135: Results summary | I135: Results summary | O135: Results summary
B136: Unit capacity | D136: m3 | E136: =E149 -> 29.30215421 | I136: Unit capacity | K136: m3 | L136: =L147 -> 18.84216368 | O136: Unit capacity | Q136: m3 | R136: =R148 -> 34.78136398
B137: Units in parallel | D137: - | E137: =E148 -> 2 | I137: Units in parallel | K137: - | L137: =L146 -> 1 | O137: Units in parallel | Q137: - | R137: =R147 -> 1
B138: Electrical power | D138: kW-h | E138: =E156 -> 632.926531 | I138: Electrical power | K138: kW-h | L138: =L151 -> 7976.515958 | O138: Electrical power | Q138: kW-h | R138: =R152 -> 10283.26862
B139: Steam | D139: kg | E139: =E170 -> 1344511.83 | I139: Steam | K139: kg | L139: - | O139: Steam | Q139: kg | R139: =R174 -> 501986.1336
B140: Cooling water | D140: kg | E140: - | I140: Cooling water | K140: kg | L140: - | O140: Cooling water | Q140: kg | R140: -
B141: Chilled water | D141: kg | E141: =E179 -> 33915894.63 | I141: Chilled water | K141: kg | L141: - | O141: Chilled water | Q141: kg | R141: -
B143: Volume calculation | I143: Throughput calculation | O143: Volume calculation
B144: Batch volume | D144: m3 | E144: =StreamTable(E129,"Volume") -> 3164.632655 | I144: Volume, total | K144: m3 | L144: =StreamTable(L129,"Volume") -> 2261.059642 | O144: Specific evap. rate | Q144: (kg/h)/m3 | R144: 100
B145: Throughput rate | D145: m3/h | E145: =E144/E130 -> 26.37193879 | I145: Rate, total | K145: m3/h | L145: =L144/L130 -> 18.84216368 | O145: Evaporation rate | Q145: kg/h | R145: =R169/R129 -> 3478.136398
B146: Working volume | D146: m3 | E146: =E145*E131 -> 52.74387758 | I146: Units in parallel | K146: - | L146: =ROUNDUP(L145/L132,0) -> 1 | O146: Vessel volume | Q146: m3 | R146: =R145/R144 -> 34.78136398
B147: Total vessel volume | D147: m3 | E147: =E146/E132 -> 58.60430842 | I147: Unit throughput | K147: m3/h | L147: =L145/L146 -> 18.84216368 | O147: Units in parallel | Q147: - | R147: =ROUNDUP(R146/R131,0) -> 1
B148: Units in parallel | D148: - | E148: =ROUNDUP(E147/E133,0) -> 2 | O148: Vessel volume | Q148: m3 | R148: =R146/R147 -> 34.78136398
B149: Vessel volume | D149: m3 | E149: =E147/E148 -> 29.30215421 | I149: Power calculation
I150: Power, unit | K150: kJ | L150: =L131*L144 -> 28715457.45 | O150: Power calculation
B151: Agitation power calculation | K151: kW-h | L151: =L150/kJ_per_kWh -> 7976.515958 | O151: Specific power | Q151: kW/(kg/h) | R151: 0.02
B152: Specific power | D152: kW/m3 | E152: 0.1 | K152: kW | L152: =L151/L130 -> 66.47096632 | O152: Power | Q152: kW-h | R152: =R151*R156 -> 10283.26862
B153: Process time | D153: s | E153: =E130*s_per_h -> 432000
B154: Power | D154: kW | E154: =E152*E146 -> 5.274387758 | O154: Heat to raise liquid stream temperature
D155: kJ | E155: =E154*E153 -> 2278535.511 | O155: Stream | Q155: - | R155: 600
D156: kW-h | E156: =E154*E130 -> 632.926531 | O156: Batch mass | Q156: kg | R156: =StreamTable(R155,"Mass per batch") -> 514163.4308
O157: Temperature in | Q157: degC | R157: 25
B158: Evaporation calculations | O158: Specific heat | Q158: kJ/(kg-K) | R158: 3.58
B159: Batch mass | D159: kg | E159: =StreamTable(E129,"Mass per batch") -> 3164632.655 | O159: Duty | Q159: kJ | R159: =R156*R158*(R130-R157) -> 82831728.7
B160: Temperature in | D160: degC | E160: 30
B161: Temperature evap. | D161: degC | E161: 100 | O161: Heat to raise gas stream temperature
B162: Duty for temp. change | D162: kJ | E162: =(E161-E160)*Cp_H2O*E159 -> 925971514.8 | O162: Stream | Q162: - | R162: 605
O163: Batch mass | Q163: kg | R163: =StreamTable(R162,"Mass per batch") -> 2086881.839
B164: Exhaust gas stream | D164: - | E164: 450 | O164: Temperature in | Q164: degC | R164: 25
B165: Exhaust gas mass | D165: kg | E165: =StreamTable(E164,"Mass per batch") -> 903573.0131 | O165: Duty | Q165: kJ | R165: =R163*Cp_air*(R130-R164) -> 94848779.57
B166: Duty for evaporation | D166: kJ | E166: =E165*Hvap_H2O -> 1897503328
O167: Heat for evaporation
B168: Total duty | D168: kJ | E168: =E162+E166 -> 2823474842 | O168: Stream | Q168: - | R168: 650
D169: kJ/hr | E169: =E168/E130 -> 23528957.02 | O169: Batch water mass | Q169: kg | R169: =StreamTable(R168,"Water") -> 417376.3677
B170: Steam rate | D170: kg | E170: =E168/Hvap_H2O -> 1344511.83 | O170: Duty | Q170: kJ | R170: =R169*Hvap_H2O -> 876490372.3
D171: kg/h | E171: =E170/E130 -> 11204.26525
O172: Total heating duty
B173: Evaporation calculations | O173: Duty | Q173: kJ | R173: =R170+R165+R159 -> 1054170881
B174: Crystallized stream | D174: - | E174: 500 | O174: Steam rate | Q174: kg | R174: =R173/Hvap_H2O -> 501986.1336
B175: Total mass | D175: kg | E175: =StreamTable(E174,"Mass per batch") -> 2261059.642 | Q175: kg/h | R175: =R174/R129 -> 4183.21778
B176: Temperature in | D176: degC | E176: 100
B177: Temperature out | D177: degC | E177: 25
B178: Cooling duty | D178: kJ | E178: =(E177-E176)*Cp_H2O*E175 -> -708842197.7
B179: Chilled water rate | D179: kg | E179: =E178/(Cp_H2O*(T_ChilledWater_Supply-T_ChilledWater_Return)) -> 33915894.63
D180: kg/h | E180: =E179/E130 -> 282632.4552
B182: Clean in place calculations
B183: Vol flow per circ. | D183: (m3/h)/m | E183: 2.1
B184: Time | D184: h | E184: =L61 -> 2
B185: Vessel volume | D185: m3 | E185: =E136 -> 29.30215421
B186: Height / diameter | D186: - | E186: 2.5
B187: Diameter | D187: m | E187: =(4*E185/E186/PI())^(1/3) -> 2.462010419
B188: Circumference | D188: m | E188: =PI()*E187 -> 7.734633846
B189: Flow rate per vessel | D189: m3/h | E189: =E183*E188 -> 16.24273108
B190: Total flow rate | D190: m3/h | E190: =E189*E137 -> 32.48546215
B191: Total volume H2O | D191: m3 | E191: =E190*E184 -> 64.97092431
A198: Fluid transport equipment sizing
B201: Compressors | E201: K-200 | I201: Pumps | L201: P-005 | M201: P-010 | N201: P-300 | O201: P-350
B202: Stream | D202: - | E202: 205 | I202: Stream | K202: - | L202: 5 | M202: 10 | N202: 105 | O202: 300
B203: Process time | D203: h | E203: =O57 -> 500 | I203: Operating time | K203: h | L203: =P57 -> 3 | M203: =Q57 -> 10 | N203: =R57 -> 1 | O203: =S57 -> 3
B204: P1 | D204: bar | E204: 1 | I204: Pressure change | K204: bar | L204: 1 | M204: 1 | N204: 1 | O204: 1
B205: P2 | D205: bar | E205: 6 | I205: Efficiency | K205: - | L205: 0.7 | M205: 0.7 | N205: 0.7 | O205: 0.7
B206: T1 | D206: degC | E206: 25 | I206: Max power per unit | K206: kW | L206: 300 | M206: 300 | N206: 300 | O206: 4
B207: T2 (after cooling) | D207: degC | E207: 40
B208: Efficiency | D208: - | E208: 0.7
B209: Max power per unit | D209: kW | E209: 3000
B211: Results summary | I211: Results summary
B212: Unit capacity | D212: kW | E212: =E234 -> 1980.205038 | I212: Unit capacity | K212: kW | L212: =L230 -> 0.4230803096 | M212: =M230 -> 12.47876762 | N212: =N230 -> 13.95340677 | O212: =O230 -> 3.875946324
B213: Units in parallel | D213: - | E213: =E233 -> 2 | I213: Units in parallel | K213: - | L213: =L229 -> 1 | M213: =M229 -> 1 | N213: =N229 -> 1 | O213: =O229 -> 12
B214: Electrical power | D214: kW-h | E214: =E232 -> 1980205.038 | I214: Electrical power | K214: kW-h | L214: =L228 -> 1.269240929 | M214: =M228 -> 124.7876762 | N214: =N228 -> 13.95340677 | O214: =O228 -> 139.5340677
B215: Steam | D215: kg | E215: - | I215: Steam | K215: kg | L215: - | M215: - | N215: - | O215: -
B216: Cooling water | D216: kg | E216: =E243 -> 232494021.5 | I216: Cooling water | K216: kg | L216: - | M216: - | N216: - | O216: -
B217: Chilled water | D217: kg | E217: - | I217: Chilled water | K217: kg | L217: - | M217: - | N217: - | O217: -
B219: Throughput calculation | I219: Throughput calculation
B220: Process time | D220: s | E220: =E203*s_per_h -> 1800000 | I220: Volume total | K220: m3 | L220: =StreamTable(L202,"Volume") -> 31.9848714 | M220: =StreamTable(M202,"Volume") -> 3144.649441 | N220: =StreamTable(N202,"Volume") -> 351.6258505 | O220: =StreamTable(O202,"Volume") -> 3516.258505
B221: Batch air volume | D221: m3 | E221: =StreamTable(E202,"Volume") -> 21327230.51 | I221: Operating time | K221: s | L221: =L203*s_per_h -> 10800 | M221: =M203*s_per_h -> 36000 | N221: =N203*s_per_h -> 3600 | O221: =O203*s_per_h -> 10800
B222: Air rate | D222: m3/s | E222: =E221/E220 -> 11.84846139 | I222: Volume rate total | K222: m3/s | L222: =L220/L221 -> 0.002961562167 | M222: =M220/M221 -> 0.08735137336 | N222: =N220/N221 -> 0.09767384737 | O222: =O220/O221 -> 0.3255794912
D223: m3/h | E223: =E222*s_per_h -> 42654.46101
I224: Power calculation
B225: Power calculation | I225: Pressure change | K225: kPa | L225: =L204*kPa_per_bar -> 100 | M225: =M204*kPa_per_bar -> 100 | N225: =N204*kPa_per_bar -> 100 | O225: =O204*kPa_per_bar -> 100
B226: γ (Cp/Cv ratio) | D226: - | E226: 1.4 | I226: Fluid power | K226: kW | L226: =L225*L222 -> 0.2961562167 | M226: =M225*M222 -> 8.735137336 | N226: =N225*N222 -> 9.767384737 | O226: =O225*O222 -> 32.55794912
B227: γ/(γ-1) | E227: =E226/(E226-1) -> 3.5 | I227: Power | K227: kW | L227: =L226/L205 -> 0.4230803096 | M227: =M226/M205 -> 12.47876762 | N227: =N226/N205 -> 13.95340677 | O227: =O226/O205 -> 46.51135589
B228: Compression ratio | D228: - | E228: =E205/E204 -> 6 | K228: kW-h | L228: =L227*L203 -> 1.269240929 | M228: =M227*M203 -> 124.7876762 | N228: =N227*N203 -> 13.95340677 | O228: =O227*O203 -> 139.5340677
B229: Suction pressure | D229: kPa | E229: =E204*kPa_per_bar -> 100 | I229: Units in parallel | K229: - | L229: =ROUNDUP(L227/L206,0) -> 1 | M229: =ROUNDUP(M227/M206,0) -> 1 | N229: =ROUNDUP(N227/N206,0) -> 1 | O229: =ROUNDUP(O227/O206,0) -> 12
B230: Fluid power | D230: kW | E230: =E229*E222*E227*(E228^(1/E227)-1) -> 2772.287053 | I230: Unit power | K230: kW | L230: =L227/L229 -> 0.4230803096 | M230: =M227/M229 -> 12.47876762 | N230: =N227/N229 -> 13.95340677 | O230: =O227/O229 -> 3.875946324
B231: Power | D231: kW | E231: =E230/E208 -> 3960.410076
D232: kW-h | E232: =E231*E203 -> 1980205.038
B233: Units in parallel | D233: - | E233: =ROUNDUP(E231/E209,0) -> 2
B234: Unit power | D234: kW | E234: =E231/E233 -> 1980.205038
B236: Cooling calculations
B237: Air mass, total | D237: kg | E237: =StreamTable(E202,"Mass per batch") -> 26101937.83
B238: T1 | D238: K | E238: =E206+273.15 -> 298.15
B239: T2 (before cooling) | D239: K | E239: =E238*E228^(1/E227) -> 497.466388
B240: T2 (after cooling) | D240: K | E240: =E207+273.15 -> 313.15
B241: Cooling duty | D241: kJ | E241: =(E240-E239)*Cp_air*E237 -> -4859125050
E242: =E241/500 -> -9718250.099
B243: Cooling water | D243: kg | E243: =E241/(T_CW_supply-T_CW_return)/Cp_H2O -> 232494021.5
D244: kg/h | E244: =E243/E203 -> 464988.043
A252: Miscellaneous equipment sizing
B255: Inline sterilizers | E255: H-005 | F255: H-101 | I255: Filters | L255: F-200 | M255: F-205
B256: Stream | D256: - | E256: 5 | F256: 10 | I256: Stream | K256: - | L256: 205 | M256: 250
B257: Process time | D257: h | E257: =T57 -> 3 | F257: =U57 -> 10 | I257: Operating time | K257: h | L257: =V57 -> 500 | M257: =W57 -> 500
B258: T in | D258: degC | E258: 50 | F258: 25 | I258: Pressure | K258: bar | L258: 6 | M258: 1
B259: T sterilization | D259: degC | E259: 140 | F259: 140 | I259: Max throughput /unit | K259: m3/h | L259: 14400 | M259: 14400
B260: T out | D260: degC | E260: 35 | F260: 35
B261: Exchanger approach | D261: degC | E261: 30 | F261: 30
B262: Specific heat fluid | D262: kJ/(kg-K) | E262: 2.11 | F262: 3.97
B263: Max throughput /unit | D263: m3/h | E263: 28 | F263: 28
B265: Results summary | I265: Results summary
B266: Unit capacity | D266: m3/h | E266: =E278 -> 10.6616238 | F266: =F278 -> 26.20541201 | I266: Unit capacity | K266: m3/h | L266: =L278 -> 7109.076836 | M266: =M278 -> 14239.00537
B267: Units in parallel | D267: - | E267: =E277 -> 1 | F267: =F277 -> 12 | I267: Units in parallel | K267: - | L267: =L277 -> 1 | M267: =M277 -> 3
B268: Electrical power | D268: kW-h | E268: - | F268: - | I268: Electrical power | K268: kW-h | L268: - | M268: -
B269: Steam | D269: kg | E269: =E289 -> 1282.273495 | F269: =F289 -> 179238.2796 | I269: Steam | K269: kg | L269: - | M269: -
B270: Cooling water | D270: kg | E270: =E295 -> 193261.3162 | F270: =F295 -> 12006391.94 | I270: Cooling water | K270: kg | L270: - | M270: -
B271: Chilled water | D271: kg | E271: - | F271: - | I271: Chilled water | K271: kg | L271: - | M271: -
B273: Throughput calculations | I273: Throughput calculations
B274: Batch mass | D274: kg | E274: =StreamTable(E256,"Mass per batch") -> 42539.87897 | F274: =StreamTable(F256,"Mass per batch") -> 3160372.688 | I274: Std. volume, batch | K274: m3 | L274: =StreamTable(L256,"Volume") -> 21327230.51 | M274: =StreamTable(M256,"Volume") -> 21358508.05
B275: Batch volume | D275: m3 | E275: =StreamTable(E256,"Volume") -> 31.9848714 | F275: =StreamTable(F256,"Volume") -> 3144.649441 | I275: Act. volume, batch | K275: m3 | L275: =L274/L258 -> 3554538.418 | M275: =M274/M258 -> 21358508.05
B276: Capacity | D276: m3/h | E276: =E275/E257 -> 10.6616238 | F276: =F275/F257 -> 314.4649441 | K276: m3/h | L276: =L275/L257 -> 7109.076836 | M276: =M275/M257 -> 42717.0161
B277: Units in parallel | D277: - | E277: =ROUNDUP(E276/E263,0) -> 1 | F277: =ROUNDUP(F276/F263,0) -> 12 | I277: Units in parallel | K277: - | L277: =ROUNDUP(L276/L259,0) -> 1 | M277: =ROUNDUP(M276/M259,0) -> 3
B278: Unit throughput | D278: m3/h | E278: =E276/E277 -> 10.6616238 | F278: =F276/F277 -> 26.20541201 | I278: Unit throughput | K278: m3/h | L278: =L276/L277 -> 7109.076836 | M278: =M276/M277 -> 14239.00537
B280: Inlet/outlet exchanger calculations
B281: T1 | D281: degC | E281: =E258 -> 50 | F281: =F258 -> 25
B282: T2 | D282: degC | E282: =E287-E261 -> 110 | F282: =F287-F261 -> 110
B283: Duty | D283: kJ | E283: =$E$274*$E$262*(E282-E281) -> 5385548.677 | F283: =$F$274*$F$262*(F282-F281) -> 1066467764
B285: Heating calculations
B286: T2 | D286: degC | E286: =E282 -> 110 | F286: =F282 -> 110
B287: T3 | D287: degC | E287: =E259 -> 140 | F287: =F259 -> 140
B288: Duty | D288: kJ | E288: =$E$274*$E$262*(E287-E282) -> 2692774.339 | F288: =$F$274*$F$262*(F287-F282) -> 376400387.2
B289: Steam | D289: kg | E289: =E288/Hvap_H2O -> 1282.273495 | F289: =F288/Hvap_H2O -> 179238.2796
B291: Cooling calculations
B292: T4 | D292: degC | E292: =E281+E261 -> 80 | F292: =F281+F261 -> 55
B293: T5 | D293: degC | E293: =E260 -> 35 | F293: =F260 -> 35
B294: Duty | D294: kJ | E294: =$E$274*$E$262*(E293-E292) -> -4039161.508 | F294: =$F$274*$F$262*(F293-F292) -> -250933591.5
B295: Cooling water | D295: kg | E295: =E294/(Cp_H2O*(T_CW_supply-T_CW_return)) -> 193261.3162 | F295: =F294/(Cp_H2O*(T_CW_supply-T_CW_return)) -> 12006391.94

Sheet Equipment costs
A1: Equipment purchased cost estimation
B2: This page estimates the purchased costs (PC) and installation costs for major equipment based on capacity and year.
B5: Total equipment purchased cost | E5: =SUM(K5:K6) -> 38717776.74 | H5: Listed equipment purchased cost | K5: =SUM(D33:V33) -> 34845999.06 | N5: Listed equipment installation | Q5: =SUM(D37:V37) -> 11103026.44
B6: Total equipment installation cost | E6: =SUM(Q5:Q6) -> 13038915.28 | H6: Unlisted equipment purchased cost | K6: =K5*K7/(1-K7) -> 3871777.674 | N6: Unlisted equipment installation | Q6: =K6*Q7 -> 1935888.837
H7: Allowance for unlisted equipment | K7: 0.1 | L7: x purchased cost | N7: Unlisted eq. installation cost | Q7: 0.5 | R7: x purchased cost of unlisted equipment
D11: Fermenters | E11: Vessels | K11: Separation equipment | N11: Fluid transport equipment | S11: Misc. equipment
B12: Tag | D12: R-200 | E12: T-005 | F12: T-010 | G12: T-350 | H12: T-300 | I12: T-400 | J12: T-500 | K12: CR-300 | L12: DC-400 | M12: SD-500 | N12: K-200 | O12: P-005 | P12: P-010 | Q12: P-300 | R12: P-350 | S12: H-005 | T12: H-101 | U12: F-200 | V12: F-205
B13: Capacity metric | D13: =EquipmentList(D$12,$B13) -> Volume | E13: Volume | F13: Volume | G13: Volume | H13: Volume | I13: Volume | J13: Volume | K13: Volume | L13: Throughput | M13: Volume | N13: =EquipmentList(N$12,$B13) -> Power | O13: Power | P13: Power | Q13: Power | R13: Power | S13: Throughput | T13: Throughput | U13: Throughput | V13: Throughput
B14: Capacity units | D14: m3 | E14: m3 | F14: m3 | G14: m3 | H14: m3 | I14: m3 | J14: m3 | K14: m3 | L14: m3/h | M14: m3 | N14: kW | O14: kW | P14: kW | Q14: kW | R14: kW | S14: m3/h | T14: m3/h | U14: m3/h | V14: m3/h
B15: Number of units | D15: =EquipmentList(D$12,$B15) -> 12 | E15: 1 | F15: 4 | G15: 1 | H15: 1 | I15: 1 | J15: 1 | K15: 2 | L15: 1 | M15: 1 | N15: 2 | O15: 1 | P15: 1 | Q15: 1 | R15: 12 | S15: 1 | T15: 12 | U15: 1 | V15: 3
B16: Capacity per unit | D16: =EquipmentList(D$12,$B16) -> 493.6858914 | E16: 39.98108926 | F16: 982.7029503 | G16: 439.5323132 | H16: 3955.790818 | I16: 2826.324552 | J16: 642.7042885 | K16: 29.30215421 | L16: 18.84216368 | M16: 34.78136398 | N16: 1980.205038 | O16: 0.4230803096 | P16: 12.47876762 | Q16: 13.95340677 | R16: 3.875946324 | S16: 10.6616238 | T16: 26.20541201 | U16: 7109.076836 | V16: 14239.00537
B17: MOC | D17: SS316 | E17: SS316 | F17: SS316 | G17: SS316 | H17: SS316 | I17: SS316 | J17: SS316 | K17: SS316 | L17: SS316 | M17: SS316 | N17: CS | O17: SS316 | P17: SS316 | Q17: SS316 | R17: SS316 | S17: SS316 | T17: SS316 | U17: CS | V17: CS
B20: Scaling exponent | D20: 0.66 | E20: 0.66 | F20: 0.66 | G20: 0.66 | H20: 0.66 | I20: 0.66 | J20: 0.66 | K20: 0.66 | L20: 0.6 | M20: 0.66 | N20: 0.88 | O20: 0.6 | P20: 0.6 | Q20: 0.6 | R20: 0.6 | S20: 0.3 | T20: 0.3 | U20: 0.3 | V20: 0.3
B21: Capacity (ref.) | D21: 500 | E21: 40 | F21: 1000 | G21: 1000 | H21: 1000 | I21: 1000 | J21: 1000 | K21: 40 | L21: 15 | M21: 30 | N21: 2000 | O21: 10 | P21: 10 | Q21: 10 | R21: 10 | S21: 10 | T21: 10 | U21: 3600 | V21: 3600
B22: PC (ref.) | D22: 912635 | E22: 122100 | F22: 1022000 | G22: 1022000 | H22: 1022000 | I22: 1022000 | J22: 1022000 | K22: 122100 | L22: 127400 | M22: 101000 | N22: 892000 | O22: 700 | P22: 700 | Q22: 700 | R22: 700 | S22: 339000 | T22: 339000 | U22: 4500 | V22: 4500
B23: PC/unit (ref. year) | D23: =D22*(D16/D21)^D20 -> 905012.1086 | E23: =E22*(E16/E21)^E20 -> 122061.8984 | F23: 1010298.219 | G23: 594052.5022 | H23: 2532939.903 | I23: 2028885.024 | J23: 763375.6211 | K23: 99428.24469 | L23: 146080.7991 | M23: 111355.0988 | N23: 884226.2424 | O23: 104.9425778 | P23: 799.467951 | Q23: 854.8820395 | R23: 396.391828 | S23: 345578.4914 | T23: 452602.5494 | U23: 5519.067758 | V23: 6797.757374
B26: Year (ref.) | D26: 2005 | E26: 2005 | F26: 2005 | G26: 2005 | H26: 2005 | I26: 2005 | J26: 2005 | K26: 2005 | L26: 2005 | M26: 2005 | N26: 2002 | O26: 2005 | P26: 2005 | Q26: 2005 | R26: 2005 | S26: 2005 | T26: 2005 | U26: 2005 | V26: 2005
B27: Year (est.) | D27: 2016 | E27: 2016 | F27: 2016 | G27: 2016 | H27: 2016 | I27: 2016 | J27: 2016 | K27: 2016 | L27: 2016 | M27: 2016 | N27: 2016 | O27: 2016 | P27: 2016 | Q27: 2016 | R27: 2016 | S27: 2016 | T27: 2016 | U27: 2016 | V27: 2016
B28: CEPCI (ref.) | D28: 468.2 | E28: 468.2 | F28: 468.2 | G28: 468.2 | H28: 468.2 | I28: 468.2 | J28: 468.2 | K28: 468.2 | L28: 468.2 | M28: 468.2 | N28: 395.6 | O28: 468.2 | P28: 468.2 | Q28: 468.2 | R28: 468.2 | S28: 468.2 | T28: 468.2 | U28: 468.2 | V28: 468.2
B29: CEPCI (est.) | D29: 556.8 | E29: 556.8 | F29: 556.8 | G29: 556.8 | H29: 556.8 | I29: 556.8 | J29: 556.8 | K29: 556.8 | L29: 556.8 | M29: 556.8 | N29: 556.8 | O29: 556.8 | P29: 556.8 | Q29: 556.8 | R29: 556.8 | S29: 556.8 | T29: 556.8 | U29: 556.8 | V29: 556.8
B30: PC/unit (est. year) | D30: =D23*D29/D28 -> 1076272.409 | E30: =E23*E29/E28 -> 145160.3269 | F30: 1201482.376 | G30: 706468.247 | H30: 3012261.721 | I30: 2412821.831 | J30: 907833.2888 | K30: 118243.5853 | L30: 173724.4531 | M30: 132427.4221 | N30: 1244532.79 | O30: 124.8014253 | P30: 950.7555642 | Q30: 1016.655958 | R30: 471.403182 | S30: 410974.165 | T30: 538250.96 | U30: 6563.470585 | V30: 8084.133503
B33: Total PC | D33: =D30*D15 -> 12915268.91 | E33: 145160.3269 | F33: 4805929.503 | G33: 706468.247 | H33: 3012261.721 | I33: 2412821.831 | J33: 907833.2888 | K33: 236487.1706 | L33: 173724.4531 | M33: 132427.4221 | N33: 2489065.58 | O33: 124.8014253 | P33: 950.7555642 | Q33: 1016.655958 | R33: 5656.838184 | S33: 410974.165 | T33: 6459011.52 | U33: 6563.470585 | V33: 24252.40051
B36: Installation factor | D36: 0.2 | E36: 0.3 | F36: 0.3 | G36: 0.3 | H36: 0.3 | I36: 0.3 | J36: 0.3 | K36: 0.3 | L36: 0.5 | M36: 0.5 | N36: 0.5 | O36: 0.5 | P36: 0.5 | Q36: 0.5 | R36: 0.5 | S36: 0.5 | T36: 0.5 | U36: 0.5 | V36: 0.5
B37: Installation cost | D37: =D36*D33 -> 2583053.783 | E37: 43548.09806 | F37: 1441778.851 | G37: 211940.4741 | H37: 903678.5164 | I37: 723846.5493 | J37: 272349.9866 | K37: 70946.15119 | L37: 86862.22654 | M37: 66213.71106 | N37: 1244532.79 | O37: 62.40071266 | P37: 475.3777821 | Q37: 508.3279791 | R37: 2828.419092 | S37: 205487.0825 | T37: 3229505.76 | U37: 3281.735292 | V37: 12126.20025
I51: Cart data
I52: Fermenters | J52: =D37 -> 2583053.783
I53: Vessels | J53: =SUM(E37:J37) -> 3597142.475
I54: Separation | J54: =SUM(K37:M37) -> 224022.0888
I55: Compressor | J55: =N37 -> 1244532.79
I56: Inline sterilizers | J56: =SUM(S37:T37) -> 3434992.843
I57: Other | J57: =SUM(O37:R37,U37:V37) -> 19282.46111

Sheet CapEx
A1: Fixed capital estimation
B2: This page estimates direct fixed capital investment by applying multiplication factors to purchased equipment cost.
B5: Direct fixed capital | H5: Total capital investment
B6: Plant direct costs | F6: =F38 -> 80020669.03 | H6: Direct fixed capital | L6: =DirectFixedCapital -> 128833277.1
B7: Plant indirect costs | F7: =F44 -> 32008267.61 | H7: Working capital | J7: 0.1 | K7: x (RM+OL+UT+W) | L7: =J7*(Cost_RawMaterials+Cost_Labor+Cost_Utilities+Cost_Waste) -> 1515000.341
B8: Other costs | F8: =F50 -> 16804340.5 | H8: Startup costs | J8: 0.1 | K8: x DFC | L8: =J8*DirectFixedCapital -> 12883327.71
B9: Total | F9: =SUM(F6:F8) -> 128833277.1 | H9: Total | L9: =SUM(L6:L8) -> 143231605.2
A25: Capital cost component setpoints and calculations
B28: Plant direct costs
B29: Equipment purchase | F29: =Eq_PurchasedCost -> 38717776.74
B30: Installation | F30: =Eq_InstallationCost -> 13038915.28
B31: Piping | D31: 0.15 | E31: x PC | F31: =D31*Eq_PurchasedCost -> 5807666.511
B32: Instrumentation | D32: 0.2 | E32: x PC | F32: 7743555.348
B33: Insulation | D33: 0.03 | E33: x PC | F33: 1161533.302
B34: Electrical facilities | D34: 0.1 | E34: x PC | F34: 3871777.674
B35: Buildings | D35: 0.1 | E35: x PC | F35: 3871777.674
B36: Yard improvements | D36: 0.05 | E36: x PC | F36: 1935888.837
B37: Auxiliary facilities | D37: 0.1 | E37: x PC | F37: 3871777.674
B38: Total plant direct costs (DC) | F38: =SUM(F29:F37) -> 80020669.03
B41: Plant indirect costs
B42: Engineering | D42: 0.15 | E42: x DC | F42: =D42*$F$38 -> 12003100.36
B43: Construction | D43: 0.25 | E43: x DC | F43: =D43*$F$38 -> 20005167.26
B44: Total plant indirect costs (IC) | F44: =SUM(F42:F43) -> 32008267.61
B47: Other costs
B48: Contractor's fee | D48: 0.05 | E48: x (PC + IC) | F48: =D48*($F$38+$F$44) -> 5601446.832
B49: Contingency | D49: 0.1 | E49: x (PC + IC) | F49: =D49*($F$38+$F$44) -> 11202893.66
B50: Total | F50: =SUM(F48:F49) -> 16804340.5

Sheet OpEx & Rev
A1: Operating cost and revenue estimation
B2: This page estimates plant operating costs and revenue based on the stream table, equipment list, and user input.
B5: Operating costs | E5: USD/year
B6: Raw materials | E6: =Cost_RawMaterials -> 8136519.13
B7: Utilities | E7: =Cost_Utilities -> 5672477.993
B8: Labor | E8: =Cost_Labor -> 756147
B9: Waste treatment | E9: =Cost_Waste -> 584859.2837
B10: Facilities | E10: =Cost_Facilities -> 10313441.53
B11: Laboratory | E11: =Cost_Lab -> 21000
B12: Total | E12: =SUM(E6:E11) -> 25484444.94
B15: Revenue | E15: USD/year
B16: Product sales | E16: =H31 -> 60000000
B18: Total | E18: =SUM(E16:E17) -> 60000000
A25: Operating cost component settings & calculations
B28: Products | D28: USD/kg | F28: kg/batch | G28: kg/yr | H28: USD/yr | J28: Raw materials | L28: USD/kg | N28: kg/batch | O28: kg/yr | P28: USD/yr
B29: Riboflavin (cr) | D29: =Dashboard!E17 -> 60 | F29: =StreamTable(700,B29) -> 83333.33333 | G29: =F29*Batches_per_year -> 1000000 | H29: =D29*G29 -> 60000000 | J29: Air | L29: 0 | N29: =StreamTable(205,"Mass per batch")+StreamTable(605,"Mass per batch") -> 28188819.67 | O29: =N29*Batches_per_year -> 338265836 | P29: =L29*O29 -> 0
J30: Methionine | L30: =Dashboard!E18 -> 35 | N30: =StreamTable(10,J30) -> 2382.233222 | O30: 28586.79867 | P30: 1000537.953
B31: Total | H31: =SUM(H14:H30) -> 60000000 | J31: Glucose | L31: =Dashboard!E19 -> 1 | N31: =StreamTable(5,J31) -> 29777.91528 | O31: 357334.9833 | P31: 357334.9833
J32: Potassium phosphate | L32: 1.5 | N32: =StreamTable(10,J32) -> 1191.116611 | O32: 14293.39933 | P32: 21440.099
J33: Magnesium sulfate | L33: 1.5 | N33: =StreamTable(10,J33) -> 1191.116611 | O33: 14293.39933 | P33: 21440.099
J34: Malt Extract | L34: =Dashboard!E20 -> 4 | N34: =StreamTable(10,J34) -> 29777.91528 | O34: 357334.9833 | P34: 1429339.933
J35: Peptone | L35: =Dashboard!E21 -> 9 | N35: =StreamTable(10,J35) -> 29777.91528 | O35: 357334.9833 | P35: 3216014.85
J36: Sunflower Oil | L36: =Dashboard!E22 -> 0.55 | N36: =StreamTable(10,J36) -> 89333.74583 | O36: 1072004.95 | P36: 589602.7225
J37: Water | L37: 0.002 | N37: =StreamTable(5,J37)+StreamTable(10,J37)+EquipmentList("Total", "Process water") -> 2977856.499 | O37: 35734277.98 | P37: 71468.55597
J38: Yeast extract | L38: =Dashboard!E23 -> 4 | N38: =StreamTable(10,J38) -> 29777.91528 | O38: 357334.9833 | P38: 1429339.933
J39: Total | P39: =SUM(P29:P38) -> 8136519.13
B44: Utilities | D44: USD/unit | E44: Unit | F44: Units/batch | G44: Units/yr | H44: USD/yr | J44: Labor | L44: USD/h | N44: h/batch | O44: h/yr | P44: USD/yr
B45: Electrical power | D45: =Dashboard!E28 -> 0.11 | E45: kW-h | F45: =EquipmentList("Total",B45) -> 3421192.884 | G45: =F45*Batches_per_year -> 41054314.61 | H45: =G45*D45 -> 4515974.607 | J45: Operator | L45: =Dashboard!E27 -> 85 | N45: =EquipmentList("Total","Operating labor") -> 564.85 | O45: =N45*Batches_per_year -> 6778.2 | P45: =L45*O45 -> 576147
B46: Steam | D46: 20 | E46: MT | F46: =EquipmentList("Total",B46) -> 2042.103259 | G46: =F46*Batches_per_year -> 24505.23911 | H46: =G46*D46 -> 490104.7822 | J46: QC analyst | L46: 100 | N46: 150 | O46: =N46*Batches_per_year -> 1800 | P46: =L46*O46 -> 180000
B47: Chilled water | D47: 0.175 | E47: MT | F47: =EquipmentList("Total",B47) -> 282376.4293 | G47: =F47*Batches_per_year -> 3388517.152 | H47: =G47*D47 -> 592990.5015 | J47: Total | N47: =SUM(N45:N46) -> 714.85 | O47: =SUM(O45:O46) -> 8578.2 | P47: =SUM(P45:P46) -> 756147
B48: Cooling water | D48: 0.025 | E48: MT | F48: =EquipmentList("Total",B48) -> 244693.6748 | G48: =F48*Batches_per_year -> 2936324.097 | H48: =G48*D48 -> 73408.10243
B49: Total | H49: =SUM(H45:H48) -> 5672477.993
B60: Waste | D60: USD/kg | F60: kg/batch | G60: kg/yr | H60: USD/yr | J60: Facility costs | P60: USD/yr
B61: Crystallizer aq fraction | D61: 0.004 | F61: =StreamTable(555,"Mass per batch") -> 1704118.866 | G61: =F61*Batches_per_year -> 20449426.39 | H61: =D61*G61 -> 81797.70556 | J61: Maintenance | L61: =Dashboard!E29 -> 0.1 | M61: x PC | P61: =L61*Eq_PurchasedCost -> 3871777.674
B62: Crystallizer oil fraction | D62: 0.98 | F62: =StreamTable(550,"Mass per batch") -> 42777.34508 | G62: =F62*Batches_per_year -> 513328.141 | H62: =D62*G62 -> 503061.5781 | J62: Insurance | L62: 0.01 | M62: x DFC | P62: =L62*DirectFixedCapital -> 1288332.771
B63: Fermenter exhaust | F63: =StreamTable(250,"Mass per batch") -> 26140217.74 | G63: =F63*Batches_per_year -> 313682612.9 | H63: =D63*G63 -> 0 | J63: Local taxes | L63: 0.02 | M63: x DFC | P63: =L63*DirectFixedCapital -> 2576665.543
B64: Crystallizer exhaust | F64: =StreamTable(450,"Mass per batch") -> 903573.0131 | G64: =F64*Batches_per_year -> 10842876.16 | H64: =D64*G64 -> 0 | J64: Factory expense | L64: 0.02 | M64: x DFC | P64: =L64*DirectFixedCapital -> 2576665.543
B65: Spray dryer exhaust | F65: =StreamTable(650,"Mass per batch") -> 2504258.206 | G65: =F65*Batches_per_year -> 30051098.48 | H65: =D65*G65 -> 0 | J65: Total | P65: =SUM(P61:P64) -> 10313441.53
B66: Total | H66: =SUM(H61:H65) -> 584859.2837
B76: Laboratory/QC/QA | D76: USD/batch | H76: USD/yr
B77: Fixed cost | D77: 1000 | H77: =D77*Batches_per_year -> 12000
B78: Product titer | D78: 750 | H78: =D78*Batches_per_year -> 9000
B79: Total | H79: =SUM(H77:H78) -> 21000

Sheet Cash flow
A1: Cash flow analysis
B2: This page performs a discounted cash flow analysis.
B5: User input | F5: Profitability metrics
B6: Income tax rate | D6: 0.29 | F6: IRR | H6: =IRR(E38:S38) -> 0.1738735901
B7: Discount rate | D7: 0.1 | F7: NPV | H7: =(NPV(DiscountRate,F38:S38)+E38) -> 52.39637699 | I7: MM USD
F8: Discounted payback | H8: =D46 -> 9.319245442 | I8: yr
D15: Year | E15: 1 | F15: 2 | G15: 3 | H15: 4 | I15: 5 | J15: 6 | K15: 7 | L15: 8 | M15: 9 | N15: 10 | O15: 11 | P15: 12 | Q15: 13 | R15: 14 | S15: 15
B17: Capital outlay | D17: MM USD | E17: =SUM(E19,E21) -> -38.64998314 | F17: =SUM(F19,F21) -> -51.53331086 | G17: -40.16498348 | H17: 0 | I17: 0 | J17: 0 | K17: 0 | L17: 0 | M17: 0 | N17: 0 | O17: 0 | P17: 0 | Q17: 0 | R17: 0 | S17: 7.956664198
B18: Fixed capital | D18: - | E18: 0.3 | F18: 0.4 | G18: 0.3 | S18: -0.05
D19: MM USD | E19: =-E18*DirectFixedCapital/10^6 -> -38.64998314 | F19: =-F18*DirectFixedCapital/10^6 -> -51.53331086 | G19: =-G18*DirectFixedCapital/10^6 -> -38.64998314 | S19: =-S18*DirectFixedCapital/10^6 -> 6.441663857
B20: Working capital | D20: - | G20: 1 | S20: -1
D21: MM USD | G21: =-G20*Working_Capital/10^6 -> -1.515000341 | S21: =-S20*Working_Capital/10^6 -> 1.515000341
B22: Startup costs | D22: - | G22: 1
D23: MM USD | G23: =-G22*Startup_Costs/10^6 -> -12.88332771
B26: Gross profit | D26: MM USD | G26: =G28-G29 -> 17.25777753 | H26: 34.51555506 | I26: 34.51555506 | J26: 34.51555506 | K26: 34.51555506 | L26: 34.51555506 | M26: 34.51555506 | N26: 34.51555506 | O26: 34.51555506 | P26: 34.51555506 | Q26: 34.51555506 | R26: 34.51555506 | S26: 34.51555506
B27: Operating rate | D27: - | G27: 0.5 | H27: 1 | I27: 1 | J27: 1 | K27: 1 | L27: 1 | M27: 1 | N27: 1 | O27: 1 | P27: 1 | Q27: 1 | R27: 1 | S27: 1
B28: Revenue | D28: MM USD | G28: =G27*Revenue/10^6 -> 30 | H28: 60 | I28: 60 | J28: 60 | K28: 60 | L28: 60 | M28: 60 | N28: 60 | O28: 60 | P28: 60 | Q28: 60 | R28: 60 | S28: 60
B29: Operating costs | D29: MM USD | G29: =G27*OpEx/10^6 -> 12.74222247 | H29: 25.48444494 | I29: 25.48444494 | J29: 25.48444494 | K29: 25.48444494 | L29: 25.48444494 | M29: 25.48444494 | N29: 25.48444494 | O29: 25.48444494 | P29: 25.48444494 | Q29: 25.48444494 | R29: 25.48444494 | S29: 25.48444494
B32: Net profit | D32: MM USD | E32: =E26-E35*IncomeTax -> 0 | F32: 0 | G32: 15.98918708 | H32: 28.24220913 | I32: 28.24220913 | J32: 28.24220913 | K32: 28.24220913 | L32: 28.24220913 | M32: 28.24220913 | N32: 28.24220913 | O32: 28.24220913 | P32: 28.24220913 | Q32: 24.50604409 | R32: 24.50604409 | S32: 24.50604409
B33: Depreciation | D33: Schedule | G33: 0.1 | H33: 0.1 | I33: 0.1 | J33: 0.1 | K33: 0.1 | L33: 0.1 | M33: 0.1 | N33: 0.1 | O33: 0.1 | P33: 0.1
D34: MM USD | G34: =G33*DirectFixedCapital/10^6 -> 12.88332771 | H34: 12.88332771 | I34: 12.88332771 | J34: 12.88332771 | K34: 12.88332771 | L34: 12.88332771 | M34: 12.88332771 | N34: 12.88332771 | O34: 12.88332771 | P34: 12.88332771
B35: Taxable income | D35: MM USD | G35: =IF(G26-G34>0,G26-G34,0) -> 4.374449817 | H35: 21.63222735 | I35: 21.63222735 | J35: 21.63222735 | K35: 21.63222735 | L35: 21.63222735 | M35: 21.63222735 | N35: 21.63222735 | O35: 21.63222735 | P35: 21.63222735 | Q35: 34.51555506 | R35: 34.51555506 | S35: 34.51555506
B38: Cash flow | D38: MM USD | E38: =E32+E17 -> -38.64998314 | F38: -51.53331086 | G38: -24.1757964 | H38: 28.24220913 | I38: 28.24220913 | J38: 28.24220913 | K38: 28.24220913 | L38: 28.24220913 | M38: 28.24220913 | N38: 28.24220913 | O38: 28.24220913 | P38: 28.24220913 | Q38: 24.50604409 | R38: 24.50604409 | S38: 32.46270829
B39: Cumulative | D39: MM USD | E39: =E38 -> -38.64998314 | F39: =F38+E39 -> -90.183294 | G39: =G38+F39 -> -114.3590904 | H39: -86.11688127 | I39: -57.87467214 | J39: -29.63246301 | K39: -1.390253876 | L39: 26.85195526 | M39: 55.09416439 | N39: 83.33637352 | O39: 111.5785826 | P39: 139.8207918 | Q39: 164.3268359 | R39: 188.83288 | S39: 221.2955883
B40: Discounted cash flow | D40: MM USD | E40: =E38/(1+DiscountRate)^(E15-1) -> -38.64998314 | F40: -46.84846442 | G40: -19.97999702 | H40: 21.21878973 | I40: 19.28980885 | J40: 17.53618986 | K40: 15.94199078 | L40: 14.49271889 | M40: 13.17519899 | N40: 11.97745363 | O40: 10.88859421 | P40: 9.898722008 | Q40: 7.808380869 | R40: 7.098528062 | S40: 8.548445693
B41: Cum. disc. cash flow | D41: MM USD | E41: =E40 -> -38.64998314 | F41: =F40+E41 -> -85.49844756 | G41: =G40+F41 -> -105.4784446 | H41: -84.25965485 | I41: -64.96984601 | J41: -47.43365615 | K41: -31.49166537 | L41: -16.99894647 | M41: -3.82374748 | N41: 8.15370615 | O41: 19.04230036 | P41: 28.94102237 | Q41: 36.74940324 | R41: 43.8479313 | S41: 52.39637699
B44: Payback calculation
B45: Non-discounted | D45: =SUM(E45:S45) -> 7.049226102 | E45: =IF(AND(E39>=0,D39<0),-D39/(E39-D39),0) -> 0 | F45: =IF(AND(F39>=0,E39<0),-E39/(F39-E39)+E15,0) -> 0 | G45: 0 | H45: 0 | I45: 0 | J45: 0 | K45: 0 | L45: =IF(AND(L39>=0,K39<0),-K39/(L39-K39)+K15,0) -> 7.049226102 | M45: =IF(AND(M39>=0,L39<0),-L39/(M39-L39)+L15,0) -> 0 | N45: 0 | O45: 0 | P45: 0 | Q45: 0 | R45: 0 | S45: 0
B46: Discounted | D46: =SUM(E46:S46) -> 9.319245442 | E46: =IF(AND(E41>=0,D41<0),-D41/(E41-D41),0) -> 0 | F46: =IF(AND(F41>=0,E41<0),-E41/(F41-E41)+E15,0) -> 0 | G46: 0 | H46: 0 | I46: 0 | J46: 0 | K46: 0 | L46: =IF(AND(L41>=0,K41<0),-K41/(L41-K41)+K15,0) -> 0 | M46: =IF(AND(M41>=0,L41<0),-L41/(M41-L41)+L15,0) -> 0 | N46: 9.319245442 | O46: 0 | P46: 0 | Q46: 0 | R46: 0 | S46: 0

Sheet Constants
A1: Constants
B2: This page contains various constants and conversion factors that are used as Named Ranges throughout the workbook.
B5: Physical constants | H5: Plant parameters
B6: Specific heat of glucose syrup | E6: 2.11 | F6: kJ/(kg-K) | H6: Cooling water supply | K6: 25 | L6: degC
B7: Specific heat of water | E7: 4.18 | F7: kJ/(kg-K) | H7: Cooling water return | K7: 30 | L7: degC
B8: Heat capacity of water | E8: 2100 | F8: kJ/kg | H8: Steam temperature | K8: 152 | L8: degC
B9: Specific heat of air | E9: 1.01 | F9: kJ/(kg-K) | H9: Chilled water supply | K9: 25 | L9: degC
H10: Chilled water return | K10: 30 | L10: degC
B14: Molecular weights | H14: Unit conversions
B15: Oxygen | D15: O2 | E15: 31.998 | F15: kg/kmol | H15: Time | K15: 31536000 | L15: s/yr
B16: Nitrogen | D16: N2 | E16: 28.014 | F16: kg/kmol | K16: 3600 | L16: s/h
K17: 60 | L17: s/min
H18: Mass | K18: 1000 | L18: kg/t
H19: Energy | K19: 3600 | L19: kJ/kWh
H20: Pressure | K20: 100 | L20: kPa/bar
H21: Amount | K21: 23.6447402 | L21: scm/kmol
